bitfinex-derivatives/quotes_ETHF0:USTF0_20260214
["timestamp","ask_amount","ask_price","bid_price","bid_amount"]
[1771065477632,0.00387928,2077.9,2077.5,0.83149596]
[1771065477937,0.86315902,2077.9,2077.5,0.83149596]
[1771065479139,0.00387928,2077.9,2077.5,0.83149596]
[1771065480129,0.86315902,2077.9,2077.5,0.83149596]
[1771065481239,0.86315902,2077.9,2077.4,1.07106202]
[1771065481430,0.86315902,2077.9,2077.4,0.24081]
[1771065483143,0.86315902,2077.9,2077.1,0.83025202]
[1771065483837,0.86315902,2077.9,2077.4,0.24081]
[1771065484742,0.86315902,2077.9,2077.4,1.07106202]
[1771065485943,0.86315902,2077.9,2077.5,0.83025202]
[1771065486443,0.86315902,2077.9,2077.4,1.07106202]
[1771065486743,0.86315902,2077.9,2077.5,0.83025202]
[1771065486945,0.86315902,2077.9,2077.4,1.07106202]
[1771065487145,0.86315902,2077.9,2077.5,0.83025202]
[1771065489142,0.86315902,2077.9,2077.4,1.07106202]
[1771065489342,0.86315902,2077.9,2077.4,0.24081]
[1771065489744,0.86315902,2077.9,2077.1,0.83025202]
[1771065491145,0.86315902,2077.9,2077.4,0.24081]
[1771065491946,0.86315902,2077.9,2077.5,0.83025202]
[1771065493444,0.82520573,2077.9,2077.5,0.83025202]
[1771065496548,0.82520573,2077.9,2077.4,1.07106202]
[1771065497348,0.82520573,2077.9,2077.5,0.83025202]
[1771065501853,0.82520573,2077.9,2077.4,1.07106202]
[1771065502549,0.82520573,2077.9,2077.5,0.83025202]
[1771065503248,0.82520573,2077.9,2077.4,1.07106202]
[1771065509652,0.82520573,2077.9,2077.5,0.83025202]
[1771065511957,0.82520573,2077.9,2077.4,1.02843973]
[1771065513264,0.82520573,2077.9,2077.4,0.24081]
[1771065519570,0.82520573,2077.9,2077.4,1.02843973]
[1771065519767,0.82520573,2077.9,2077.5,0.78762973]
[1771065520572,0.82520573,2077.9,2077.4,0.24081]
[1771065520769,0.82520573,2077.9,2077.4,0.97792381]
[1771065521071,0.82520573,2077.9,2077.4,0.24081]
[1771065522073,0.82520573,2077.9,2077.4,0.24081]
[1771065527075,0.82520573,2077.9,2077.4,0.97792381]
[1771065527374,0.82520573,2077.9,2077.4,0.24081]
[1771065528181,0.82520573,2077.9,2077.4,0.97792381]
[1771065539182,0.82520573,2077.9,2077.4,0.24081]
[1771065539387,0.82520573,2077.9,2077.4,0.97792381]
[1771065540990,0.82520573,2077.9,2077.4,0.24081]
[1771065541288,0.82520573,2077.9,2077.4,0.93750531]
[1771065542083,0.82520573,2077.9,2077.4,0.24081]
[1771065542686,0.82520573,2077.9,2077.4,0.93750531]
[1771065542987,0.82520573,2077.9,2077.5,0.69669531]
[1771065543386,0.82520573,2077.9,2077.4,0.24081]
[1771065543585,0.82520573,2077.9,2077.4,0.93750531]
[1771065544288,0.00387928,2077.9,2077.5,0.69669531]
[1771065545388,0.65993811,2077.8,2077.4,0.93750531]
[1771065545586,0.65993811,2077.8,2077.4,0.24081]
[1771065545788,0.65993811,2077.8,2077.5,0.69669531]
[1771065546192,0.65993811,2077.8,2077.4,0.24081]
[1771065546996,0.65993811,2077.6,2076.6,0.69669531]
[1771065547885,0.65993811,2077.4,2076.9,0.24087]
[1771065548094,0.65993811,2077.4,2076.9,0.93756531]
[1771065549297,0.65993811,2077.7,2077.0,0.69669531]
[1771065549790,0.66381739,2077.9,2077.2,0.69669531]
[1771065549988,0.65993811,2077.7,2077.2,0.69669531]
[1771065551193,0.66381739,2077.9,2077.2,0.69669531]
[1771065551394,6.75475133,2077.8,2077.2,0.69669531]
[1771065551590,0.66381739,2077.9,2077.2,0.69669531]
[1771065551791,6.75484943,2077.8,2077.2,0.69669531]
[1771065551988,0.65993811,2077.8,2077.2,0.69669531]
[1771065555101,0.00387928,2077.9,2077.2,0.69669531]
[1771065555102,0.66381739,2077.9,2077.2,0.69669531]
[1771065556101,0.66381739,2077.9,2077.4,0.69669531]
[1771065559006,0.00387928,2077.9,2077.4,0.69669531]
[1771065562204,0.65993811,2078.2,2077.6,0.69669531]
[1771065563207,0.66386381,2078.2,2077.6,0.69669531]
[1771065570114,0.66386381,2078.2,2077.5,0.2408]
[1771065570307,0.66386381,2078.2,2077.5,0.93749531]
[1771065571011,0.66386381,2078.2,2077.6,0.69669531]
[1771065572612,0.66386381,2078.2,2077.5,0.2408]
[1771065572813,0.66386381,2078.2,2077.5,0.88576261]
[1771065575813,7.36650694,2078.1,2077.5,0.2408]
[1771065576014,0.65929691,2078.0,2077.5,0.2408]
[1771065576713,0.65929691,2078.0,2077.3,0.64496261]
[1771065577110,0.65929691,2078.0,2077.5,0.2408]
[1771065577815,0.65929691,2078.0,2077.3,0.64496261]
[1771065579116,0.65929691,2078.0,2077.5,0.2408]
[1771065579316,0.65929691,2078.0,2077.3,0.64496261]
[1771065580117,0.65929691,2078.0,2077.5,0.2408]
[1771065580321,0.61857121,2077.8,2077.3,0.64496261]
[1771065581119,0.61857121,2077.8,2077.5,0.2408]
[1771065581317,0.61857121,2077.8,2077.1,0.61682376]
[1771065592222,0.61857121,2077.7,2076.6,0.61682376]
[1771065592415,6.70557596,2077.6,2076.6,0.61682376]
[1771065592620,0.61857121,2077.5,2076.6,0.61682376]
[1771065593220,4.0262904,2077.9,2077.1,0.61682376]
[1771065593414,0.61857121,2078.1,2077.5,0.43883167]
[1771065593618,0.61857121,2078.0,2077.5,0.43883167]
[1771065596024,0.0039257,2078.2,2077.5,0.43883167]
[1771065596225,0.62249691,2078.2,2077.5,0.43883167]
[1771065605730,0.59064477,2078.1,2077.4,0.24081]
[1771065605927,7.31282087,2078.0,2077.0,0.32381934]
[1771065606124,0.59064477,2077.9,2077.0,0.32381934]
[1771065607427,0.59064477,2077.8,2077.0,0.32381934]
[1771065609537,0.59064477,2077.5,2076.8,0.32851292]
[1771065613941,0.59064477,2077.5,2076.7,0.24089]
[1771065614138,0.59064477,2077.5,2076.7,0.54664289]
[1771065614739,0.59064477,2077.3,2076.7,0.54664289]
[1771065618546,0.59064477,2077.3,2076.8,0.28945726]
[1771065620252,0.59064477,2077.1,2076.8,0.28945726]
[1771065621149,0.59064477,2077.1,2076.7,0.24089]
[1771065621350,0.59064477,2077.0,2076.7,0.24089]
[1771065621949,0.59064477,2077.0,2076.7,0.52272943]
[1771065624852,0.59064477,2077.0,2076.7,0.24089]
[1771065625554,0.59064477,2077.0,2076.7,0.50665319]
[1771065626854,0.59064477,2077.0,2076.7,0.24089]
[1771065627552,0.59064477,2077.0,2076.7,0.49962444]
[1771065631051,0.54506816,2077.1,2076.8,0.24440293]
[1771065631361,41.34506816,2077.2,2076.8,0.24440293]
[1771065632755,0.54506816,2077.1,2076.8,0.24440293]
[1771065633355,41.34506816,2077.2,2076.8,0.24440293]
[1771065633555,0.54506816,2077.1,2076.8,0.23080001]
[1771065636455,0.54506816,2077.1,2076.7,0.45891192]
[1771065640663,0.54506816,2077.1,2076.7,0.24089]
[1771065644364,0.56934657,2077.1,2076.7,0.45834987]
[1771065645256,0.56934657,2077.1,2076.7,0.24089]
[1771065649167,0.56934657,2076.9,2076.5,0.00497388]
[1771065650065,0.56934657,2076.9,2076.7,0.24089]
[1771065650655,0.56934657,2076.9,2076.5,0.22248449]
[1771065650862,0.56934657,2076.9,2076.5,0.00497388]
[1771065651067,0.56934657,2076.9,2076.7,0.24089]
[1771065653867,0.56934657,2077.1,2076.7,0.46057891]
[1771065654077,0.56934657,2077.1,2076.8,0.21968891]
[1771065654470,0.08756648,2077.1,2076.8,0.21968891]
[1771065658679,0.08756648,2077.1,2076.7,0.78564804]
[1771065658879,0.08756648,2077.1,2076.7,0.24089]
[1771065661376,0.08756648,2077.1,2076.5,0.54973192]
[1771065661377,0.58361559,2076.9,2076.5,0.00497388]
[1771065661981,0.58361559,2076.9,2076.3,0.58194058]
[1771065663077,0.58361559,2076.9,2076.3,0.5854342]
[1771065669985,0.58361559,2076.9,2076.3,0.00349362]
[1771065670485,0.58361559,2076.9,2076.3,0.5854342]
[1771065672087,0.58361559,2076.9,2076.3,0.00349362]
[1771065673788,0.58361559,2076.7,2076.3,0.00349362]
[1771065673989,0.58785292,2076.7,2076.3,0.00349362]
[1771065674191,0.58785292,2076.7,2076.2,0.24095]
[1771065675191,0.58785292,2076.7,2076.2,0.2470007]
[1771065676091,0.58785292,2076.7,2076.0,0.58194058]
[1771065676092,1.44341564,2076.6,2076.0,0.58194058]
[1771065676295,0.58361559,2076.5,2076.0,0.58194058]
[1771065677094,0.58361559,2076.5,2076.0,0.58773499]
[1771065678894,0.58361559,2076.5,2076.0,0.00579441]
[1771065681894,0.58361559,2076.5,2076.0,0.58773499]
[1771065690901,0.58361559,2076.5,2076.0,0.00579441]
[1771065694203,0.58361559,2076.5,2076.0,0.54038445]
[1771065705519,0.54725529,2076.6,2076.2,0.55581506]
[1771065705714,0.00423733,2076.7,2076.2,0.55581506]
[1771065705910,0.55149262,2076.7,2076.2,0.55581506]
[1771065716923,0.55149262,2076.7,2076.4,0.55581506]
[1771065717427,0.00423733,2076.7,2076.4,0.55581506]
[1771065717728,0.54725529,2077.1,2076.6,0.55581506]
[1771065718627,0.55312348,2077.1,2076.6,0.55581506]
[1771065718827,0.55312348,2077.1,2076.5,0.24092]
[1771065720728,0.55312348,2077.1,2076.2,0.55581506]
[1771065722229,0.55312348,2077.1,2076.5,0.24092]
[1771065726636,0.54638261,2076.9,2076.5,0.24092]
[1771065728133,0.54638261,2076.9,2076.2,0.55628478]
[1771065731032,5.36438261,2076.9,2076.2,0.55628478]
[1771065731238,0.54638261,2076.8,2076.0,0.80304919]
[1771065731633,0.54638261,2076.8,2076.1,0.55628478]
[1771065737834,0.54638261,2076.8,2076.2,0.24095]
[1771065738140,0.54638261,2076.8,2076.3,0.55628478]
[1771065762561,5.3836167,2077.0,2076.3,0.55628478]
[1771065762860,0.5656167,2076.9,2076.3,0.55628478]
[1771065772368,0.5656167,2076.9,2076.2,0.82246447]
[1771065772563,0.5656167,2076.7,2076.3,0.58151447]
[1771065780070,0.5656167,2076.7,2076.2,0.82246447]
[1771065780470,0.5656167,2076.7,2076.3,0.58151447]
[1771065785281,0.5656167,2076.7,2076.2,0.24095]
[1771065785488,0.5656167,2076.7,2076.2,0.77247798]
[1771065789389,0.5656167,2076.7,2076.3,0.53152798]
[1771065791290,0.5656167,2076.7,2076.2,0.24095]
[1771065791989,0.5656167,2076.7,2076.3,0.53152798]
[1771065801499,0.5656167,2076.7,2076.2,0.24095]
[1771065801699,0.5656167,2076.7,2076.2,0.77247798]
[1771065802402,0.5656167,2076.7,2076.3,0.53152798]
[1771065803096,0.5656167,2076.7,2076.2,0.53152798]
[1771065803400,0.54654641,2076.5,2076.0,0.53732239]
[1771065810112,0.54654641,2076.5,2076.0,0.00579441]
[1771065810506,0.54654641,2076.5,2076.0,0.53732239]
[1771065818211,0.56708475,2076.1,2075.7,0.83163824]
[1771065818709,41.36708475,2076.0,2074.7,7.37611888]
[1771065818902,41.36708475,2076.0,2074.8,0.59063824]
[1771065819106,41.36708475,2076.0,2074.8,0.59489591]
[1771065820103,41.36708475,2076.0,2075.4,0.5717776]
[1771065822211,0.59408012,2076.5,2075.8,0.15873043]
[1771065822411,0.59408012,2076.7,2075.9,0.24099]
[1771065823114,0.59408012,2076.7,2076.0,0.0012322]
[1771065823414,40.8,2076.6,2076.0,0.0012322]
[1771065824211,0.59968097,2076.5,2076.0,0.0012322]
[1771065825316,0.59968097,2076.5,2075.9,0.24099]
[1771065828517,0.59968097,2076.5,2075.9,0.25774025]
[1771065837927,0.59968097,2076.5,2075.9,0.24099]
[1771065840820,0.5893356,2076.4,2075.9,0.24099]
[1771065842021,0.58892518,2076.3,2075.3,0.03433665]
[1771065843130,0.58892518,2076.3,2075.4,0.03529274]
[1771065844124,0.58892518,2076.3,2075.6,0.03622061]
[1771065848930,0.58892518,2076.3,2075.5,0.24103]
[1771065849632,0.5890038,2076.2,2075.5,0.24103]
[1771065850133,0.5890038,2076.2,2075.5,0.28571311]
[1771065852930,0.5890038,2076.2,2075.6,0.04636606]
[1771065855128,0.5890038,2076.2,2075.5,0.24103]
[1771065855330,0.5890038,2076.2,2075.5,0.29031723]
[1771065857433,0.5890038,2076.2,2075.6,0.05090146]
[1771065863332,0.5890038,2076.2,2075.5,0.24103]
[1771065863538,0.5890038,2076.2,2075.5,0.29654354]
[1771065867544,0.58585127,2076.0,2075.5,0.24103]
[1771065884751,40.8,2075.9,2075.5,0.24103]
[1771065884951,0.58765281,2075.8,2075.5,0.24103]
[1771065890254,41.38604329,2075.7,2075.5,0.24103]
[1771065890463,41.38604329,2075.7,2075.3,0.05094644]
[1771065890762,0.58604329,2075.6,2075.3,0.05094644]
[1771065891062,0.59219096,2075.6,2075.5,0.24103]
[1771065891263,0.59219096,2075.6,2075.3,0.05094644]
[1771065892063,0.59219096,2075.6,2075.5,0.24103]
[1771065892264,0.59219096,2075.6,2075.3,0.05094644]
[1771065893164,0.59219096,2075.6,2075.5,0.24103]
[1771065893364,0.59219096,2075.6,2075.3,0.05094644]
[1771065894163,0.59219096,2075.6,2075.5,0.24103]
[1771065894368,0.59219096,2075.6,2075.3,0.05094644]
[1771065895172,0.59219096,2075.6,2075.5,0.24103]
[1771065895466,0.59219096,2075.6,2075.3,0.05094644]
[1771065896069,0.59219096,2075.6,2075.5,0.24103]
[1771065896270,0.59219096,2075.6,2075.3,0.05094644]
[1771065897068,0.59219096,2075.6,2075.5,0.24103]
[1771065897265,0.59219096,2075.6,2075.3,0.05094644]
[1771065898069,0.59219096,2075.6,2075.5,0.24103]
[1771065898269,0.59219096,2075.6,2075.2,0.0467115]
[1771065899069,0.59219096,2075.6,2075.5,0.24103]
[1771065899270,0.04032096,2075.6,2075.2,0.0467115]
[1771065900071,0.04032096,2075.6,2075.5,0.24103]
[1771065900567,0.04032096,2075.6,2075.2,0.0467115]
[1771065901067,0.04032096,2075.6,2075.5,0.24103]
[1771065901263,0.04032096,2075.6,2075.2,0.0467115]
[1771065902069,0.04032096,2075.6,2075.5,0.24103]
[1771065903275,0.00614767,2075.6,2075.5,0.24103]
[1771065903569,41.35032212,2075.7,2075.5,0.24103]
[1771065903870,0.55032212,2075.7,2075.5,0.24103]
[1771065904470,0.55568637,2075.7,2075.5,0.24103]
[1771065912273,0.06445637,2075.7,2075.5,0.24103]
[1771065912575,0.55032212,2075.9,2075.5,0.81425935]
[1771065913480,0.55386722,2075.9,2075.5,0.81425935]
[1771065913972,41.35032212,2076.1,2075.6,0.57322935]
[1771065914878,41.35397222,2076.1,2075.6,0.57322935]
[1771065915779,0.55032212,2076.0,2075.6,0.57322935]
[1771065918580,0.55032212,2076.0,2075.5,0.81425935]
[1771065918777,0.55032212,2076.0,2075.5,0.24103]
[1771065919183,0.55032212,2076.0,2075.5,0.81425935]
[1771065922988,0.55032212,2076.0,2075.6,0.57322935]
[1771065923379,41.35397222,2076.1,2075.6,0.57322935]
[1771065926086,0.55032212,2076.0,2075.6,0.57322935]
[1771065926788,41.35397222,2076.1,2075.6,0.57322935]
[1771065929088,0.55032212,2076.0,2075.6,0.57322935]
[1771065931487,41.38093661,2076.1,2075.7,0.24101]
[1771065931692,41.38093661,2076.1,2075.8,0.60492482]
[1771065931992,41.38093661,2076.1,2075.7,0.84593482]
[1771065932390,0.57728651,2076.0,2075.7,0.84593482]
[1771065935096,40.8036501,2076.1,2075.7,0.84593482]
[1771065935300,41.38093661,2076.1,2075.7,0.84593482]
[1771065935500,0.57728651,2076.0,2075.7,0.84593482]
[1771065935794,41.38093661,2076.1,2075.8,0.60492482]
[1771065935999,0.58093661,2076.1,2075.8,0.60492482]
[1771065938893,41.37728651,2076.3,2075.8,0.60492482]
[1771065939495,0.57728651,2076.2,2075.8,0.60492482]
[1771065939904,0.58174589,2076.2,2075.8,0.60492482]
[1771065944799,40.8,2076.3,2076.0,0.60192386]
[1771065945002,0.3004178,2076.5,2076.0,0.60192386]
[1771065945701,20.29196169,2076.6,2076.2,0.60192386]
[1771065945904,61.09705097,2076.6,2076.2,0.60192386]
[1771065946806,41.10605097,2076.6,2076.2,0.60192386]
[1771065947202,0.30605097,2076.6,2076.2,0.60192386]
[1771065947900,0.00508928,2076.6,2076.2,0.60192386]
[1771065948206,40.8,2076.8,2076.2,0.60192386]
[1771065948502,0.29583789,2076.9,2076.4,0.60192386]
[1771065949110,41.09583789,2076.9,2076.4,0.60192386]
[1771065949408,41.10193945,2076.9,2076.4,0.60797521]
[1771065951510,0.30031674,2076.8,2076.4,0.60797521]
[1771065953610,0.30031674,2076.8,2076.4,0.00605135]
[1771065954507,0.30031674,2076.8,2075.9,0.60192386]
[1771065955304,0.30031674,2076.8,2075.9,0.60698249]
[1771065955800,0.30031674,2076.8,2075.9,0.00505863]
[1771065956603,0.30031674,2076.8,2075.9,0.60698249]
[1771065959708,0.30031674,2076.8,2076.1,0.60192386]
[1771065960507,0.30031674,2076.8,2076.3,0.60192386]
[1771065960712,40.80610156,2076.9,2076.3,0.60192386]
[1771065960905,40.85822615,2076.9,2076.3,0.60192386]
[1771065961406,0.05394107,2076.8,2076.3,0.60192386]
[1771065961805,0.05394107,2076.8,2076.2,0.24095]
[1771065962409,0.05394107,2076.8,2076.2,0.82375931]
[1771065963309,0.05394107,2076.8,2076.3,0.58280383]
[1771065964305,0.05394107,2076.8,2076.2,0.82458172]
[1771065964507,0.05394107,2076.8,2076.3,0.58363172]
[1771065970408,0.05394107,2076.8,2076.2,0.81873279]
[1771065970613,0.05394107,2076.8,2076.3,0.57778279]
[1771065981627,45.62710156,2076.9,2076.3,0.57778279]
[1771065981829,45.73261938,2076.9,2076.3,0.57778279]
[1771065984425,45.62710156,2076.9,2076.3,0.57778279]
[1771065986431,19.989,2076.8,2076.3,0.57778279]
[1771065989629,0.11524822,2076.7,2076.3,0.57778279]
[1771065993744,0.11524822,2076.7,2076.2,0.82258103]
[1771065996047,0.11524822,2076.7,2076.3,0.58163103]
[1771065999448,0.11524822,2076.7,2076.2,0.82258103]
[1771065999654,0.11524822,2076.7,2076.3,0.58163103]
[1771066000948,0.11524822,2076.7,2076.2,0.24095]
[1771066001156,0.12346948,2076.5,2076.1,0.60791052]
[1771066003755,0.12346948,2076.5,2076.0,0.60791052]
[1771066010561,4.9522533,2076.3,2075.9,0.61296915]
[1771066010758,0.1312533,2076.2,2075.9,0.61296915]
[1771066012463,24.812,2076.3,2075.9,0.61296915]
[1771066014965,24.94638188,2076.3,2075.9,0.61296915]
[1771066015665,0.13470985,2076.2,2075.9,0.61296915]
[1771066015966,0.13470985,2076.2,2075.8,0.60791052]
[1771066016869,0.13470985,2076.2,2075.8,0.61323252]
[1771066017467,1.57840237,2076.2,2075.8,0.61323252]
[1771066017762,1.57840237,2076.2,2075.3,0.60791052]
[1771066017763,0.60186179,2076.0,2075.3,0.60791052]
[1771066018763,0.60186179,2076.0,2075.3,0.61200239]
[1771066019162,0.60186179,2075.9,2075.3,0.61200239]
[1771066020063,40.8,2075.8,2075.3,0.61200239]
[1771066020471,41.40186179,2075.8,2075.3,0.61200239]
[1771066022868,41.417523,2075.8,2075.3,0.61200239]
[1771066023073,0.617523,2075.7,2075.3,0.61200239]
[1771066024372,0.617523,2075.7,2075.3,0.38238746]
[1771066025569,41.417523,2075.6,2075.3,0.38238746]
[1771066026174,46.238523,2075.6,2075.2,0.62535538]
[1771066026375,40.8,2075.6,2075.2,0.62535538]
[1771066027075,40.8,2075.6,2075.3,0.62535538]
[1771066028975,0.617523,2075.5,2075.2,0.87088423]
[1771066032579,0.617523,2075.5,2075.2,0.24552885]
[1771066034676,0.617523,2075.5,2075.2,0.00446885]
[1771066034881,0.617523,2075.4,2075.1,0.62535538]
[1771066035778,0.62307708,2075.4,2075.1,0.63052847]
[1771066036877,0.00555408,2075.4,2075.1,0.63052847]
[1771066046681,40.8,2075.6,2075.1,0.63052847]
[1771066047690,40.80348825,2075.6,2075.1,0.63052847]
[1771066049790,41.42101125,2075.6,2075.1,0.63052847]
[1771066050794,40.80348825,2075.6,2075.1,0.63052847]
[1771066051496,41.38260877,2075.6,2075.1,0.63052847]
[1771066054293,0.57912052,2075.5,2075.1,0.63052847]
[1771066054888,0.57912052,2075.5,2075.1,0.00517309]
[1771066055091,0.57912052,2075.5,2074.9,0.63197705]
[1771066055992,0.57912052,2075.5,2074.9,0.63620193]
[1771066059997,5.40012052,2075.5,2074.9,0.63620193]
[1771066060199,0.62529779,2075.4,2074.9,0.63620193]
[1771066069512,0.62529779,2075.4,2074.9,0.63620193]
[1771066078218,5.44629779,2075.3,2074.9,0.00422488]
[1771066078520,0.62529779,2075.2,2074.9,0.00422488]
[1771066081022,0.62529779,2075.2,2074.7,0.86263913]
[1771066081620,0.62529779,2075.2,2074.8,0.59581007]
[1771066082221,0.62529779,2075.2,2074.8,0.60098371]
[1771066083020,0.62529779,2075.2,2074.8,0.00517364]
[1771066083222,0.62529779,2075.2,2074.8,0.60098371]
[1771066083819,0.62529779,2075.2,2074.8,0.00517364]
[1771066084619,0.62529779,2075.2,2074.8,0.60098371]
[1771066090225,0.60233042,2075.3,2074.8,0.60098371]
[1771066090925,4.821,2075.5,2074.8,0.60098371]
[1771066091125,12.13661525,2075.4,2074.8,0.60098371]
[1771066091423,5.42333042,2075.4,2074.8,0.60098371]
[1771066091826,0.60233042,2075.3,2074.8,0.60098371]
[1771066094021,0.60233042,2075.2,2074.8,0.60098371]
[1771066094226,0.60233042,2075.2,2074.8,0.00517364]
[1771066097830,0.60233042,2075.1,2074.6,0.59581007]
[1771066098027,0.60233042,2075.0,2074.1,0.59581007]
[1771066098830,0.60233042,2075.0,2074.1,0.60154754]
[1771066099132,0.60233042,2075.0,2074.3,0.59581007]
[1771066099736,0.60233042,2074.9,2074.3,0.59581007]
[1771066100835,5.42333042,2074.9,2074.3,0.59581007]
[1771066102834,0.60233042,2074.8,2074.3,0.59581007]
[1771066106642,0.60233042,2074.7,2074.3,0.59581007]
[1771066113248,0.60233042,2074.7,2074.2,0.82563282]
[1771066113744,0.61483552,2074.6,2074.2,0.82563282]
[1771066114543,0.61483552,2074.6,2074.3,0.58445282]
[1771066115048,4.821,2074.7,2074.3,0.58445282]
[1771066115244,5.43583552,2074.7,2074.3,0.58445282]
[1771066116848,0.61483552,2074.7,2074.3,0.58445282]
[1771066119256,0.61483552,2074.7,2074.3,0.58445282]
[1771066119554,0.61483552,2074.8,2074.3,0.58445282]
[1771066119953,0.60383425,2074.9,2074.3,0.58445282]
[1771066120155,5.42483425,2075.0,2074.5,0.62620692]
[1771066120345,0.60383425,2075.0,2074.5,0.62620692]
[1771066120550,5.42483425,2075.2,2074.7,0.62620692]
[1771066123258,4.821,2075.4,2074.7,0.62620692]
[1771066123557,20.59783425,2075.5,2074.9,0.62620692]
[1771066123858,0.60383425,2075.4,2074.9,0.62620692]
[1771066127063,0.60383425,2075.3,2074.8,0.86731692]
[1771066127362,0.60383425,2075.3,2074.8,0.24111]
[1771066133863,0.60383425,2075.2,2074.8,0.24111]
[1771066134060,5.42483425,2075.3,2074.9,0.62620692]
[1771066134463,0.60383425,2075.2,2074.9,0.62620692]
[1771066135064,0.60383425,2075.3,2074.9,0.62620692]
[1771066135562,20.59883425,2075.4,2074.9,0.62620692]
[1771066138260,0.60383425,2075.3,2074.9,0.62620692]
[1771066142664,0.60383425,2075.3,2074.8,0.82009153]
[1771066142864,0.60383425,2075.3,2074.9,0.57898153]
[1771066150168,0.60383425,2075.3,2074.8,0.82009153]
[1771066150369,0.60383425,2075.3,2074.9,0.57898153]
[1771066162178,0.58595008,2075.2,2074.8,0.82009153]
[1771066167398,0.58595008,2075.2,2074.8,0.24111]
[1771066171000,0.58595008,2075.2,2074.8,0.82009153]
[1771066172100,0.58595008,2075.2,2074.9,0.60111232]
[1771066178906,0.58595008,2075.2,2074.8,0.84222232]
[1771066181212,0.58595008,2075.2,2074.8,0.24111]
[1771066181408,0.61809712,2075.1,2074.8,0.24111]
[1771066182410,0.61809712,2075.1,2074.4,0.59460742]
[1771066183211,0.61809712,2075.1,2074.8,0.24111]
[1771066184213,5.44209712,2075.3,2074.9,0.59460742]
[1771066184415,0.61809712,2075.3,2074.9,0.59460742]
[1771066184614,20.61309712,2075.4,2074.9,0.59460742]
[1771066184818,6.71209301,2075.3,2074.9,0.59460742]
[1771066185116,25.43709712,2075.4,2074.9,0.59460742]
[1771066185310,6.71194175,2075.3,2074.9,0.59460742]
[1771066185504,25.43709712,2075.4,2074.9,0.59460742]
[1771066185705,6.71193906,2075.3,2074.9,0.59460742]
[1771066185912,25.43709712,2075.4,2074.9,0.59460742]
[1771066186108,7.33003594,2075.3,2074.9,0.59460742]
[1771066186304,0.61809712,2075.3,2074.9,0.59460742]
[1771066188315,25.43709712,2075.4,2074.9,0.59460742]
[1771066188514,6.71198769,2075.3,2074.9,0.59460742]
[1771066188715,0.61809712,2075.3,2074.9,0.59460742]
[1771066194713,0.61809712,2075.3,2074.8,0.83571742]
[1771066195214,0.61809712,2075.3,2074.9,0.59460742]
[1771066197814,25.43709712,2075.4,2074.9,0.59460742]
[1771066198007,6.70802627,2075.3,2074.9,0.59460742]
[1771066198207,19.995,2075.4,2074.9,0.59460742]
[1771066202819,40.80348825,2075.6,2075.1,0.55780778]
[1771066203216,41.39956423,2075.6,2075.1,0.55780778]
[1771066204215,40.80348825,2075.6,2075.1,0.55780778]
[1771066204522,41.39956423,2075.6,2075.1,0.55780778]
[1771066205118,40.80348825,2075.6,2075.1,0.55780778]
[1771066206117,19.996,2075.8,2075.3,0.55780778]
[1771066207219,60.8009878,2075.8,2075.3,0.55780778]
[1771066208320,60.8009878,2075.8,2075.5,0.55780778]
[1771066209321,40.8049878,2075.8,2075.5,0.55780778]
[1771066209526,20.59307598,2076.0,2075.5,0.55780778]
[1771066210426,40.8,2075.9,2075.5,0.55780778]
[1771066210727,0.59607598,2076.4,2075.7,0.55780778]
[1771066211024,0.59607598,2076.3,2075.7,0.55780778]
[1771066211519,0.59607598,2076.3,2075.9,0.55780778]
[1771066211520,40.8,2076.2,2075.9,0.55780778]
[1771066211920,0.00589015,2076.2,2075.9,0.56214701]
[1771066212121,20.59207598,2076.4,2075.9,0.56214701]
[1771066212316,40.8,2076.3,2075.9,0.56214701]
[1771066213022,41.39975735,2076.3,2075.9,0.56214701]
[1771066214424,40.80368137,2076.3,2075.9,0.56214701]
[1771066214624,41.39975735,2076.3,2075.9,0.56214701]
[1771066215925,40.80368137,2076.3,2075.9,0.56214701]
[1771066217826,19.996,2076.4,2076.1,0.55780778]
[1771066218022,0.59607598,2076.6,2076.1,0.55780778]
[1771066218924,0.60067259,2076.6,2076.1,0.55780778]
[1771066219728,41.40067259,2076.6,2076.1,0.55780778]
[1771066221230,0.59607598,2076.5,2076.1,0.55780778]
[1771066225028,40.80459661,2076.6,2076.1,0.55780778]
[1771066225330,0.59607598,2076.5,2076.1,0.55780778]
[1771066237848,41.39843548,2076.6,2076.1,0.55780778]
[1771066240548,0.57894951,2076.5,2076.1,0.55780778]
[1771066241245,0.57894951,2076.5,2076.0,0.24098]
[1771066241246,0.57894951,2076.5,2076.0,0.83812482]
[1771066242445,0.57894951,2076.5,2076.0,0.24098]
[1771066243254,41.38354612,2076.6,2076.1,0.59714482]
[1771066243442,61.37454612,2076.6,2076.1,0.59714482]
[1771066243642,0.57894951,2076.5,2076.1,0.59714482]
[1771066249554,61.37454612,2076.6,2076.1,0.59714482]
[1771066251349,40.80459661,2076.6,2076.1,0.59714482]
[1771066251555,0.57894951,2076.8,2076.4,0.24093]
[1771066251751,0.57894951,2076.9,2076.5,0.59714482]
[1771066252448,41.38388061,2076.9,2076.5,0.59714482]
[1771066253752,0.58388061,2076.9,2076.5,0.59714482]
[1771066255059,0.0049311,2076.9,2076.5,0.59714482]
[1771066256760,61.36994951,2077.0,2076.5,0.59714482]
[1771066257757,60.79697634,2077.0,2076.5,0.59714482]
[1771066257953,61.37592585,2077.0,2076.5,0.59714482]
[1771066258164,19.99697634,2077.0,2076.5,0.59714482]
[1771066258662,0.00597634,2077.0,2076.5,0.59714482]
[1771066260669,0.58492585,2077.0,2076.5,0.59714482]
[1771066262071,0.00597634,2077.0,2076.5,0.59714482]
[1771066264773,41.38969344,2077.1,2076.5,0.59714482]
[1771066265968,41.39365696,2077.1,2076.5,0.59714482]
[1771066266570,0.58969344,2077.0,2076.5,0.59714482]
[1771066268285,40.80396352,2077.1,2076.7,0.57466947]
[1771066268573,0.09675611,2077.4,2076.7,0.57466947]
[1771066268774,0.09675611,2077.4,2076.8,0.24088]
[1771066268976,40.8,2077.3,2076.9,0.57466947]
[1771066269476,40.80399218,2077.3,2076.9,0.57466947]
[1771066271074,40.90163679,2077.3,2076.9,0.57466947]
[1771066271779,40.80399218,2077.3,2076.9,0.57466947]
[1771066272578,0.00399218,2077.3,2076.9,0.57466947]
[1771066272877,0.09738852,2077.4,2076.9,0.57466947]
[1771066273077,40.89738852,2077.4,2076.9,0.57466947]
[1771066273782,0.11530854,2077.3,2076.9,0.57466947]
[1771066275880,40.92046245,2077.4,2076.9,0.57466947]
[1771066276884,0.11345929,2077.3,2076.9,0.57466947]
[1771066277282,0.11321467,2077.9,2077.1,0.57466947]
[1771066277896,0.11321467,2077.7,2077.1,0.57466947]
[1771066278386,0.11701761,2077.7,2077.1,0.57466947]
[1771066279889,0.11292718,2077.5,2077.1,0.57466947]
[1771066280090,0.11292718,2077.5,2077.0,0.24086]
[1771066280389,0.12035123,2077.3,2077.0,0.24086]
[1771066281790,0.12011614,2077.5,2077.1,0.57466947]